[Event "Early-Titled-Tuesday-Blitz-February-20-2024"]
[Site "Chess.com"]
[Date "2024.02.20"]
[Round "8"]
[White "CarlosjPineror"]
[Black "ChessArchitect64"]
[Result "1-0"]
[WhiteElo "2579"]
[BlackElo "2238"]
[TimeControl "180+1"]
[EndTime "9:32:00 PST"]
[Termination "CarlosjPineror won on time"]

1. e4 {[%clk 0:03:00.9]} 1... e6 {[%clk 0:02:54.5]} 2. d4 {[%clk 0:03:00.5]}
2... d5 {[%clk 0:02:54.2]} 3. e5 {[%clk 0:03:00.9]} 3... c5 {[%clk 0:02:53.8]}
4. c3 {[%clk 0:03:01.6]} 4... Nc6 {[%clk 0:02:53.2]} 5. Nf3 {[%clk 0:03:01.8]}
5... cxd4 {[%clk 0:02:53.5]} 6. cxd4 {[%clk 0:03:01.8]} 6... Bd7 {[%clk
0:02:53.9]} 7. a3 {[%clk 0:03:02.2]} 7... Nge7 {[%clk 0:02:53.6]} 8. b4 {[%clk
0:03:01.6]} 8... a6 {[%clk 0:02:52.5]} 9. Bd3 {[%clk 0:03:00.5]} 9... Nf5 {[%clk
0:02:43.3]} 10. Bxf5 {[%clk 0:03:00.4]} 10... exf5 {[%clk 0:02:43.2]} 11. Nc3
{[%clk 0:03:01.3]} 11... Be6 {[%clk 0:02:43.2]} 12. Bg5 {[%clk 0:02:49.1]} 12...
Be7 {[%clk 0:02:43.1]} 13. Bxe7 {[%clk 0:02:48.6]} 13... Qxe7 {[%clk 0:02:44]}
14. Rc1 {[%clk 0:02:48.4]} 14... O-O {[%clk 0:02:43.4]} 15. O-O {[%clk
0:02:48.3]} 15... Rac8 {[%clk 0:02:38]} 16. Na4 {[%clk 0:02:48]} 16... Rfe8
{[%clk 0:02:34.1]} 17. Qd2 {[%clk 0:02:44.5]} 17... h6 {[%clk 0:02:09.3]} 18. h4
{[%clk 0:02:43.9]} 18... Na7 {[%clk 0:02:02.2]} 19. Nc5 {[%clk 0:02:39.8]} 19...
b6 {[%clk 0:01:33.3]} 20. Nd3 {[%clk 0:02:35.6]} 20... Qb7 {[%clk 0:01:22.7]}
21. h5 {[%clk 0:02:20.8]} 21... Rxc1 {[%clk 0:01:18]} 22. Rxc1 {[%clk
0:02:20.2]} 22... Rc8 {[%clk 0:01:16.1]} 23. Nf4 {[%clk 0:02:12]} 23... Rc6
{[%clk 0:01:07.6]} 24. Re1 {[%clk 0:01:32.4]} 24... Qc8 {[%clk 0:01:03.2]} 25.
Re2 {[%clk 0:01:23.3]} 25... Rc1+ {[%clk 0:01:01.5]} 26. Kh2 {[%clk 0:01:23.6]}
26... Nb5 {[%clk 0:00:57.8]} 27. a4 {[%clk 0:01:23]} 27... Na3 {[%clk
0:00:52.4]} 28. Qb2 {[%clk 0:01:20.4]} 28... Qc3 {[%clk 0:00:38.4]} 29. Nd3
{[%clk 0:00:55.5]} 29... Qxd3 {[%clk 0:00:32.3]} 30. Qxc1 {[%clk 0:00:53.8]}
30... Qxe2 {[%clk 0:00:30.5]} 31. Qxa3 {[%clk 0:00:54.2]} 31... f4 {[%clk
0:00:27.5]} 32. Qc1 {[%clk 0:00:49.8]} 32... Qe4 {[%clk 0:00:21.9]} 33. Qd2
{[%clk 0:00:42.2]} 33... Bg4 {[%clk 0:00:21.8]} 34. Ne1 {[%clk 0:00:39.8]} 34...
Qf5 {[%clk 0:00:18.6]} 35. f3 {[%clk 0:00:39.3]} 35... Qxh5+ {[%clk 0:00:18.5]}
36. Kg1 {[%clk 0:00:39.8]} 36... Be6 {[%clk 0:00:17.1]} 37. Qxf4 {[%clk
0:00:40.4]} 37... Qg6 {[%clk 0:00:17.7]} 38. Qd2 {[%clk 0:00:39.2]} 38... Qb1
{[%clk 0:00:17.9]} 39. a5 {[%clk 0:00:38.8]} 39... b5 {[%clk 0:00:16.2]} 40. Kf2
{[%clk 0:00:38.9]} 40... Qb3 {[%clk 0:00:14]} 41. Nd3 {[%clk 0:00:38.2]} 41...
Qc4 {[%clk 0:00:12.7]} 42. Nc5 {[%clk 0:00:38.9]} 42... Bc8 {[%clk 0:00:13.3]}
43. Ke3 {[%clk 0:00:37]} 43... h5 {[%clk 0:00:11.3]} 44. Kf2 {[%clk 0:00:36.7]}
44... h4 {[%clk 0:00:11.4]} 45. Kg1 {[%clk 0:00:35.2]} 45... h3 {[%clk
0:00:11.7]} 46. g4 {[%clk 0:00:33.8]} 46... Kh7 {[%clk 0:00:07.3]} 47. Kf2
{[%clk 0:00:31.1]} 47... h2 {[%clk 0:00:07.2]} 48. Kg2 {[%clk 0:00:31.2]} 48...
h1=Q+ {[%clk 0:00:07.5]} 49. Kxh1 {[%clk 0:00:31.6]} 49... Qf1+ {[%clk
0:00:08.4]} 50. Kh2 {[%clk 0:00:31.1]} 50... Qxf3 {[%clk 0:00:08.9]} 51. Qg2
{[%clk 0:00:30.1]} 51... Qf4+ {[%clk 0:00:06.6]} 52. Qg3 {[%clk 0:00:30.6]}
52... Qxd4 {[%clk 0:00:07.1]} 53. Qh4+ {[%clk 0:00:31.1]} 53... Kg8 {[%clk
0:00:05.1]} 54. Qd8+ {[%clk 0:00:32]} 54... Kh7 {[%clk 0:00:05.8]} 55. Qh4+
{[%clk 0:00:29.4]} 55... Kg8 {[%clk 0:00:06.2]} 56. Qd8+ {[%clk 0:00:25.9]}
56... Kh7 {[%clk 0:00:06.6]} 57. Qxc8 {[%clk 0:00:26.8]} 57... Qf2+ {[%clk
0:00:05.5]} 58. Kh3 {[%clk 0:00:27.3]} 58... Qf3+ {[%clk 0:00:05.9]} 59. Kh4
{[%clk 0:00:27.9]} 59... Qh1+ {[%clk 0:00:06.2]} 60. Kg5 {[%clk 0:00:25]} 60...
Qc1+ {[%clk 0:00:04.8]} 61. Kh4 {[%clk 0:00:20.9]} 61... Qh1+ {[%clk 0:00:04.6]}
62. Kg3 {[%clk 0:00:21.8]} 62... Qg1+ {[%clk 0:00:05]} 63. Kf3 {[%clk 0:00:21]}
63... Qf1+ {[%clk 0:00:05.5]} 64. Ke3 {[%clk 0:00:21.4]} 64... Qe1+ {[%clk
0:00:06]} 65. Kd4 {[%clk 0:00:21.3]} 65... Qxb4+ {[%clk 0:00:06.2]} 66. Kxd5
{[%clk 0:00:21.3]} 66... Qd2+ {[%clk 0:00:06.1]} 67. Kc6 {[%clk 0:00:21.4]}
67... Qg2+ {[%clk 0:00:06.8]} 68. Kb6 {[%clk 0:00:20.5]} 68... b4 {[%clk
0:00:04.8]} 69. Qxa6 {[%clk 0:00:15.4]} 69... Qd5 {[%clk 0:00:03.3]} 70. Qd3+
{[%clk 0:00:15.7]} 70... Qxd3 {[%clk 0:00:03.3]} 71. Nxd3 {[%clk 0:00:16.6]}
71... b3 {[%clk 0:00:04]} 72. a6 {[%clk 0:00:16.6]} 72... b2 {[%clk 0:00:04.3]}
73. Nxb2 {[%clk 0:00:16.5]} 1-0

[Event "Early-Titled-Tuesday-Blitz-February-20-2024"]
[Site "Chess.com"]
[Date "2024.02.20"]
[Round "8"]
[White "Leonid_Starozhilov"]
[Black "zajka-molotok"]
[Result "1-0"]
[WhiteElo "2684"]
[BlackElo "2509"]
[TimeControl "180+1"]
[EndTime "9:32:08 PST"]
[Termination "Leonid_Starozhilov won by resignation"]

1. e4 {[%clk 0:02:57]} 1... c5 {[%clk 0:02:57.8]} 2. Nf3 {[%clk 0:02:56.7]} 2...
Nc6 {[%clk 0:02:56.3]} 3. Bb5 {[%clk 0:02:55.3]} 3... g6 {[%clk 0:02:54.1]} 4.
Nc3 {[%clk 0:02:54.9]} 4... Bg7 {[%clk 0:02:51.7]} 5. O-O {[%clk 0:02:55.6]}
5... Nd4 {[%clk 0:02:41.6]} 6. a4 {[%clk 0:02:53]} 6... e6 {[%clk 0:02:35.9]} 7.
Nxd4 {[%clk 0:02:53.1]} 7... cxd4 {[%clk 0:02:34.1]} 8. Ne2 {[%clk 0:02:54]}
8... a6 {[%clk 0:02:32.3]} 9. Bd3 {[%clk 0:02:50.6]} 9... Ne7 {[%clk 0:02:32.6]}
10. c3 {[%clk 0:02:50.6]} 10... Nc6 {[%clk 0:02:31.8]} 11. Rb1 {[%clk
0:02:45.6]} 11... O-O {[%clk 0:02:16.8]} 12. b4 {[%clk 0:02:39.7]} 12... Ne5
{[%clk 0:02:12.7]} 13. Qc2 {[%clk 0:02:33.1]} 13... Nxd3 {[%clk 0:02:10.7]} 14.
Qxd3 {[%clk 0:02:33.4]} 14... dxc3 {[%clk 0:02:07.7]} 15. dxc3 {[%clk
0:02:28.7]} 15... Qc7 {[%clk 0:02:02.1]} 16. a5 {[%clk 0:02:20.5]} 16... d5
{[%clk 0:01:52.1]} 17. Be3 {[%clk 0:02:08.6]} 17... dxe4 {[%clk 0:01:48.6]} 18.
Qxe4 {[%clk 0:02:09.5]} 18... Bd7 {[%clk 0:01:44.1]} 19. Bc5 {[%clk 0:01:30.8]}
19... Rfe8 {[%clk 0:01:38.2]} 20. Rbd1 {[%clk 0:01:24.1]} 20... Bc6 {[%clk
0:01:35.7]} 21. Qe3 {[%clk 0:01:23.5]} 21... Rad8 {[%clk 0:01:21.3]} 22. Nd4
{[%clk 0:01:00.2]} 22... Qe5 {[%clk 0:01:11]} 23. Qg3 {[%clk 0:00:38.5]} 23...
Qxg3 {[%clk 0:01:08.1]} 24. hxg3 {[%clk 0:00:38.3]} 24... Bd5 {[%clk 0:01:05.7]}
25. Rfe1 {[%clk 0:00:38.1]} 25... e5 {[%clk 0:01:03.5]} 26. Nf3 {[%clk
0:00:32.8]} 26... f6 {[%clk 0:00:50.3]} 27. Bb6 {[%clk 0:00:25.5]} 27... Rd7
{[%clk 0:00:49.2]} 28. c4 {[%clk 0:00:24]} 28... Bc6 {[%clk 0:00:48.1]} 29. Rxd7
{[%clk 0:00:24.4]} 29... Bxd7 {[%clk 0:00:49]} 30. Rd1 {[%clk 0:00:24.8]} 30...
Be6 {[%clk 0:00:47.8]} 31. Nd2 {[%clk 0:00:20.3]} 31... Re7 {[%clk 0:00:45.4]}
32. Ne4 {[%clk 0:00:14]} 32... Rd7 {[%clk 0:00:31.7]} 33. Rxd7 {[%clk
0:00:13.4]} 33... Bxd7 {[%clk 0:00:32.6]} 34. Nd6 {[%clk 0:00:14]} 34... Bc6
{[%clk 0:00:28.8]} 35. b5 {[%clk 0:00:14.4]} 35... axb5 {[%clk 0:00:23.9]} 36.
cxb5 {[%clk 0:00:15.3]} 36... Bd5 {[%clk 0:00:23.4]} 37. a6 {[%clk 0:00:06.1]}
37... bxa6 {[%clk 0:00:22.5]} 38. bxa6 {[%clk 0:00:07]} 38... Kf8 {[%clk
0:00:16.7]} 39. Bc5 {[%clk 0:00:04.8]} 39... Ke7 {[%clk 0:00:15.2]} 40. Nf5+
{[%clk 0:00:04.7]} 40... Kf7 {[%clk 0:00:14.9]} 41. Nd6+ {[%clk 0:00:03.8]}
41... Ke6 {[%clk 0:00:14.5]} 42. Nb5 {[%clk 0:00:04.1]} 42... Kd7 {[%clk
0:00:09.9]} 43. a7 {[%clk 0:00:02.7]} 43... Ba8 {[%clk 0:00:07.4]} 44. Nc3
{[%clk 0:00:02.8]} 44... Kc6 {[%clk 0:00:07.3]} 45. Be3 {[%clk 0:00:03.5]} 45...
Kb7 {[%clk 0:00:07.1]} 46. f3 {[%clk 0:00:04.1]} 46... Bf8 {[%clk 0:00:06.3]}
47. Nd5 {[%clk 0:00:04.1]} 47... f5 {[%clk 0:00:06.1]} 48. Nf6 {[%clk
0:00:04.2]} 48... h5 {[%clk 0:00:06]} 49. Nd7 {[%clk 0:00:04.1]} 49... Bd6
{[%clk 0:00:06]} 50. f4 {[%clk 0:00:03.5]} 50... e4 {[%clk 0:00:05.7]} 51. Ne5
{[%clk 0:00:03.2]} 51... Bxe5 {[%clk 0:00:05.5]} 52. fxe5 {[%clk 0:00:04.1]}
52... Kc6 {[%clk 0:00:05.8]} 53. Bf4 {[%clk 0:00:03.6]} 53... Kd5 {[%clk
0:00:06.1]} 54. Kf2 {[%clk 0:00:04.1]} 54... Kc6 {[%clk 0:00:05.6]} 55. Be3
{[%clk 0:00:03.6]} 55... Kd5 {[%clk 0:00:05.9]} 56. Bf4 {[%clk 0:00:03.8]} 56...
g5 {[%clk 0:00:05]} 57. Bxg5 {[%clk 0:00:04.2]} 57... Kxe5 {[%clk 0:00:05.5]}
58. Ke3 {[%clk 0:00:04.6]} 58... Kd5 {[%clk 0:00:05.1]} 59. Kf4 {[%clk
0:00:04.5]} 59... Ke6 {[%clk 0:00:05.5]} 60. Bd8 {[%clk 0:00:04.7]} 60... Bb7
{[%clk 0:00:04.8]} 61. Bb6 {[%clk 0:00:03.8]} 61... Ba8 {[%clk 0:00:05.7]} 62.
Be3 {[%clk 0:00:04]} 62... Bb7 {[%clk 0:00:05.9]} 63. Kg5 {[%clk 0:00:04.1]}
63... Ba8 {[%clk 0:00:05.7]} 64. Kxh5 {[%clk 0:00:04.6]} 64... Ke5 {[%clk
0:00:06.1]} 65. Kg5 {[%clk 0:00:04.9]} 65... Ke6 {[%clk 0:00:06.7]} 66. Kf4
{[%clk 0:00:05]} 66... Kf6 {[%clk 0:00:06.6]} 67. g4 {[%clk 0:00:04.6]} 67...
fxg4 {[%clk 0:00:06.5]} 68. Kxg4 {[%clk 0:00:05.5]} 68... Kg6 {[%clk 0:00:06.3]}
69. Kf4 {[%clk 0:00:06.4]} 69... Kf6 {[%clk 0:00:06.4]} 70. g4 {[%clk 0:00:07]}
70... Kg6 {[%clk 0:00:06.7]} 71. g5 {[%clk 0:00:07.9]} 71... Kh5 {[%clk
0:00:06.7]} 72. Kf5 {[%clk 0:00:07.2]} 72... Bb7 {[%clk 0:00:06.9]} 73. Kf6
{[%clk 0:00:06.5]} 73... Ba8 {[%clk 0:00:05.9]} 74. g6 {[%clk 0:00:06.9]} 74...
Bd5 {[%clk 0:00:05.1]} 75. g7 {[%clk 0:00:07.3]} 75... Kg4 {[%clk 0:00:05.6]}
76. a8=Q {[%clk 0:00:07]} 1-0

[Event "Early-Titled-Tuesday-Blitz-February-20-2024"]
[Site "Chess.com"]
[Date "2024.02.20"]
[Round "8"]
[White "Njal28"]
[Black "BilodeauA"]
[Result "1/2-1/2"]
[WhiteElo "2996"]
[BlackElo "3037"]
[TimeControl "180+1"]
[EndTime "9:32:09 PST"]
[Termination "Game drawn by repetition"]

1. d4 {[%clk 0:03:00.9]} 1... d5 {[%clk 0:03:00.3]} 2. Nf3 {[%clk 0:03:00]} 2...
Nf6 {[%clk 0:03:00.4]} 3. e3 {[%clk 0:02:59.1]} 3... e6 {[%clk 0:02:57.7]} 4. c4
{[%clk 0:02:59.3]} 4... a6 {[%clk 0:02:56.2]} 5. cxd5 {[%clk 0:02:54.3]} 5...
exd5 {[%clk 0:02:55.4]} 6. Nc3 {[%clk 0:02:55.2]} 6... Bd6 {[%clk 0:02:45.6]} 7.
Bd3 {[%clk 0:02:55.3]} 7... O-O {[%clk 0:02:44.3]} 8. Qc2 {[%clk 0:02:55.4]}
8... Re8 {[%clk 0:02:29.5]} 9. O-O {[%clk 0:02:53.8]} 9... Nbd7 {[%clk
0:02:20.3]} 10. Bd2 {[%clk 0:02:41.5]} 10... Nf8 {[%clk 0:01:51.7]} 11. h3
{[%clk 0:02:40]} 11... Ng6 {[%clk 0:01:45.1]} 12. Ng5 {[%clk 0:02:34.9]} 12...
c6 {[%clk 0:01:27]} 13. Rae1 {[%clk 0:02:28.1]} 13... Bd7 {[%clk 0:01:22.1]} 14.
f4 {[%clk 0:02:23.8]} 14... Rc8 {[%clk 0:01:21.2]} 15. e4 {[%clk 0:02:01.1]}
15... dxe4 {[%clk 0:01:20.9]} 16. Bc4 {[%clk 0:02:01.7]} 16... Nd5 {[%clk
0:01:08.2]} 17. f5 {[%clk 0:01:54.2]} 17... Nf8 {[%clk 0:00:47.7]} 18. Ngxe4
{[%clk 0:01:35.5]} 18... Bb8 {[%clk 0:00:46.4]} 19. Bxd5 {[%clk 0:01:04.5]}
19... cxd5 {[%clk 0:00:45.4]} 20. Nc5 {[%clk 0:01:05.2]} 20... Rxe1 {[%clk
0:00:40.6]} 21. Bxe1 {[%clk 0:01:05.8]} 21... Qc7 {[%clk 0:00:37.5]} 22. g4
{[%clk 0:01:06.3]} 22... Bc6 {[%clk 0:00:30.1]} 23. Qg2 {[%clk 0:01:06.3]} 23...
b6 {[%clk 0:00:30.2]} 24. Nd3 {[%clk 0:01:06.2]} 24... Re8 {[%clk 0:00:25.4]}
25. Bd2 {[%clk 0:01:01]} 25... Qd8 {[%clk 0:00:21.6]} 26. Bf4 {[%clk 0:00:59.1]}
26... Nd7 {[%clk 0:00:20.7]} 27. g5 {[%clk 0:00:53.5]} 27... Bxf4 {[%clk
0:00:20]} 28. Nxf4 {[%clk 0:00:54.4]} 28... b5 {[%clk 0:00:15.6]} 29. b4 {[%clk
0:00:51.1]} 29... Nb6 {[%clk 0:00:15.5]} 30. g6 {[%clk 0:00:47.2]} 30... fxg6
{[%clk 0:00:15.3]} 31. fxg6 {[%clk 0:00:48.1]} 31... h6 {[%clk 0:00:15.9]} 32.
Nd3 {[%clk 0:00:44.2]} 32... Re6 {[%clk 0:00:09.9]} 33. Ne5 {[%clk 0:00:41.9]}
33... Be8 {[%clk 0:00:10.1]} 34. Qg4 {[%clk 0:00:39.4]} 34... Rf6 {[%clk
0:00:10.2]} 35. Rxf6 {[%clk 0:00:35.9]} 35... Qxf6 {[%clk 0:00:11.1]} 36. h4
{[%clk 0:00:27.5]} 36... Nc4 {[%clk 0:00:11.4]} 37. Qc8 {[%clk 0:00:27.9]} 37...
Nd6 {[%clk 0:00:11.2]} 38. Qg4 {[%clk 0:00:25.2]} 38... Nc4 {[%clk 0:00:09.1]}
39. Nxd5 {[%clk 0:00:24.2]} 39... Qd6 {[%clk 0:00:07.2]} 40. Qc8 {[%clk
0:00:21.6]} 40... Kf8 {[%clk 0:00:04.6]} 41. Qf5+ {[%clk 0:00:15.6]} 41... Kg8
{[%clk 0:00:04.3]} 42. Nxc4 {[%clk 0:00:05.8]} 42... bxc4 {[%clk 0:00:05.2]} 43.
h5 {[%clk 0:00:06.3]} 43... c3 {[%clk 0:00:05.8]} 44. Qc8 {[%clk 0:00:02.6]}
44... Qg3+ {[%clk 0:00:06]} 45. Kf1 {[%clk 0:00:03]} 45... Qf3+ {[%clk
0:00:05.8]} 46. Kg1 {[%clk 0:00:03.2]} 46... Kf8 {[%clk 0:00:05.9]} 47. Qc5+
{[%clk 0:00:03]} 47... Kg8 {[%clk 0:00:04.9]} 48. Nxc3 {[%clk 0:00:01.7]} 48...
Qg3+ {[%clk 0:00:05.2]} 49. Kf1 {[%clk 0:00:02]} 49... Qf3+ {[%clk 0:00:05.7]}
50. Ke1 {[%clk 0:00:02.6]} 50... Qe3+ {[%clk 0:00:03.5]} 51. Kd1 {[%clk
0:00:03.2]} 51... Qf3+ {[%clk 0:00:03.7]} 52. Kc1 {[%clk 0:00:03.8]} 52... Qf1+
{[%clk 0:00:03.8]} 53. Kb2 {[%clk 0:00:04.6]} 53... Qf2+ {[%clk 0:00:03.2]} 54.
Ka3 {[%clk 0:00:05.3]} 54... Qe3 {[%clk 0:00:02.5]} 55. Qc4+ {[%clk 0:00:04.6]}
55... Kf8 {[%clk 0:00:02.6]} 56. Qc5+ {[%clk 0:00:05.1]} 56... Kg8 {[%clk
0:00:02.8]} 57. d5 {[%clk 0:00:05.7]} 57... Qe5 {[%clk 0:00:02.9]} 58. Kb3
{[%clk 0:00:05.9]} 58... Bd7 {[%clk 0:00:02.6]} 59. d6 {[%clk 0:00:04.2]} 59...
Be6+ {[%clk 0:00:02.9]} 60. Ka3 {[%clk 0:00:04.7]} 60... Qf4 {[%clk 0:00:01.3]}
61. Qc7 {[%clk 0:00:02.5]} 61... Kh8 {[%clk 0:00:01.8]} 62. Qd8+ {[%clk
0:00:02.4]} 62... Bg8 {[%clk 0:00:01.4]} 63. Qc7 {[%clk 0:00:03.1]} 63... Qe3
{[%clk 0:00:01.6]} 64. Ka4 {[%clk 0:00:03.5]} 64... Qe6 {[%clk 0:00:02]} 65. Ka5
{[%clk 0:00:03.8]} 65... Qe3 {[%clk 0:00:01.8]} 66. Qc5 {[%clk 0:00:03.8]} 66...
Qe6 {[%clk 0:00:02]} 67. Kb6 {[%clk 0:00:04.3]} 67... Qe8 {[%clk 0:00:02.8]} 68.
Nd5 {[%clk 0:00:02.4]} 68... a5 {[%clk 0:00:03.7]} 69. Nc7 {[%clk 0:00:02.6]}
69... Qb8+ {[%clk 0:00:04.4]} 70. Kxa5 {[%clk 0:00:02.9]} 70... Qb7 {[%clk
0:00:05.2]} 71. b5 {[%clk 0:00:02.9]} 71... Qb8 {[%clk 0:00:05.8]} 72. b6 {[%clk
0:00:03.3]} 72... Qb7 {[%clk 0:00:05.8]} 73. Nb5 {[%clk 0:00:03.7]} 73... Qb8
{[%clk 0:00:06.3]} 74. Na7 {[%clk 0:00:04.1]} 74... Qb7 {[%clk 0:00:06.9]} 75.
a4 {[%clk 0:00:03.9]} 75... Qb8 {[%clk 0:00:07.5]} 76. d7 {[%clk 0:00:04.5]}
76... Qb7 {[%clk 0:00:08]} 77. Qc6 {[%clk 0:00:04.7]} 77... Qb8 {[%clk 0:00:08]}
78. Qc7 {[%clk 0:00:05.2]} 78... Qa8 {[%clk 0:00:08.1]} 79. Qc6 {[%clk
0:00:04.7]} 79... Qb8 {[%clk 0:00:08.5]} 80. Nb5 {[%clk 0:00:04.7]} 80... Qa8+
{[%clk 0:00:08.1]} 81. Na7 {[%clk 0:00:04.2]} 81... Qb8 {[%clk 0:00:08.4]}
1/2-1/2

[Event "Early-Titled-Tuesday-Blitz-February-20-2024"]
[Site "Chess.com"]
[Date "2024.02.20"]
[Round "8"]
[White "MyDream003"]
[Black "Sanan_Sjugirov"]
[Result "1-0"]
[WhiteElo "2750"]
[BlackElo "2891"]
[TimeControl "180+1"]
[EndTime "9:32:24 PST"]
[Termination "MyDream003 won on time"]

1. e4 {[%clk 0:03:00.9]} 1... c5 {[%clk 0:02:59.8]} 2. Nf3 {[%clk 0:03:00.9]}
2... Nc6 {[%clk 0:03:00.4]} 3. d4 {[%clk 0:02:58.9]} 3... cxd4 {[%clk
0:03:01.3]} 4. Nxd4 {[%clk 0:02:59.6]} 4... Nf6 {[%clk 0:03:01.9]} 5. Nc3 {[%clk
0:03:00.3]} 5... e5 {[%clk 0:03:02.6]} 6. Ndb5 {[%clk 0:03:00.5]} 6... d6 {[%clk
0:03:03.2]} 7. Bg5 {[%clk 0:03:01.2]} 7... a6 {[%clk 0:03:03.6]} 8. Na3 {[%clk
0:03:01.6]} 8... b5 {[%clk 0:03:04.3]} 9. Nd5 {[%clk 0:03:02.2]} 9... Be7 {[%clk
0:03:04.8]} 10. Bxf6 {[%clk 0:02:59.8]} 10... Bxf6 {[%clk 0:03:05.7]} 11. c3
{[%clk 0:03:00.4]} 11... Bg5 {[%clk 0:03:05.4]} 12. Nc2 {[%clk 0:03:00.6]} 12...
Ne7 {[%clk 0:03:05.4]} 13. Ncb4 {[%clk 0:02:29.5]} 13... O-O {[%clk 0:03:04.5]}
14. Nxe7+ {[%clk 0:02:27.6]} 14... Qxe7 {[%clk 0:03:05.4]} 15. Nd5 {[%clk
0:02:27]} 15... Qb7 {[%clk 0:03:05.2]} 16. Be2 {[%clk 0:02:24]} 16... Be6 {[%clk
0:03:03.7]} 17. h4 {[%clk 0:02:17.7]} 17... Bd8 {[%clk 0:02:53.7]} 18. Ne3
{[%clk 0:02:12.9]} 18... Bb6 {[%clk 0:02:49.2]} 19. Qd3 {[%clk 0:02:12.7]} 19...
b4 {[%clk 0:02:39.1]} 20. c4 {[%clk 0:02:08.6]} 20... Bd4 {[%clk 0:02:35.8]} 21.
Rb1 {[%clk 0:02:08.8]} 21... Rac8 {[%clk 0:02:27.3]} 22. b3 {[%clk 0:02:08]}
22... Bc3+ {[%clk 0:02:26.2]} 23. Kf1 {[%clk 0:02:08]} 23... Bd4 {[%clk
0:02:25.6]} 24. Bf3 {[%clk 0:01:33.2]} 24... Qa7 {[%clk 0:02:20]} 25. Re1 {[%clk
0:01:28.8]} 25... a5 {[%clk 0:02:19.2]} 26. g3 {[%clk 0:01:28.2]} 26... a4
{[%clk 0:02:17.3]} 27. Kg2 {[%clk 0:01:28.7]} 27... Ra8 {[%clk 0:02:01.7]} 28.
Re2 {[%clk 0:01:23.1]} 28... axb3 {[%clk 0:01:58]} 29. axb3 {[%clk 0:01:24]}
29... Bxe3 {[%clk 0:01:41.8]} 30. Rxe3 {[%clk 0:01:21.9]} 30... Qc5 {[%clk
0:01:41.3]} 31. Rd1 {[%clk 0:01:19.9]} 31... Ra6 {[%clk 0:01:36.5]} 32. Qe2
{[%clk 0:01:12.4]} 32... Rd8 {[%clk 0:01:14.2]} 33. Red3 {[%clk 0:01:10.6]}
33... Kf8 {[%clk 0:01:13.7]} 34. Bg4 {[%clk 0:01:07.8]} 34... Rd7 {[%clk
0:00:56.2]} 35. Bxe6 {[%clk 0:00:59.4]} 35... fxe6 {[%clk 0:00:57.1]} 36. Qh5
{[%clk 0:00:59]} 36... Rf7 {[%clk 0:00:52.2]} 37. Rf3 {[%clk 0:00:38.6]} 37...
Rxf3 {[%clk 0:00:41.6]} 38. Qxf3+ {[%clk 0:00:39.5]} 38... Kg8 {[%clk
0:00:37.9]} 39. Qg4 {[%clk 0:00:30.4]} 39... Qc8 {[%clk 0:00:35.7]} 40. c5
{[%clk 0:00:17]} 40... dxc5 {[%clk 0:00:34.8]} 41. Qg5 {[%clk 0:00:17.1]} 41...
Ra8 {[%clk 0:00:31.9]} 42. Qxe5 {[%clk 0:00:17.1]} 42... c4 {[%clk 0:00:13]} 43.
bxc4 {[%clk 0:00:18]} 43... b3 {[%clk 0:00:12.3]} 44. c5 {[%clk 0:00:12.2]}
44... Kh8 {[%clk 0:00:04.8]} 45. Rd2 {[%clk 0:00:08.6]} 45... h6 {[%clk
0:00:04]} 46. h5 {[%clk 0:00:07.5]} 46... Qc6 {[%clk 0:00:02.8]} 47. Kh2 {[%clk
0:00:05.9]} 47... Rc8 {[%clk 0:00:01.4]} 48. Qb2 {[%clk 0:00:04.2]} 48... Qb7
{[%clk 0:00:01]} 49. Qc3 {[%clk 0:00:03.1]} 49... Rb8 {[%clk 0:00:01.4]} 50. Rb2
{[%clk 0:00:03.5]} 50... Qc6 {[%clk 0:00:01.7]} 51. f3 {[%clk 0:00:03.3]} 51...
Rc8 {[%clk 0:00:01.4]} 52. Rxb3 {[%clk 0:00:03.6]} 52... Qd7 {[%clk 0:00:02]}
53. Rb2 {[%clk 0:00:03.4]} 53... Qc7 {[%clk 0:00:02.5]} 54. Rc2 {[%clk 0:00:04]}
54... Qf7 {[%clk 0:00:03.4]} 55. g4 {[%clk 0:00:03.9]} 55... Qf4+ {[%clk
0:00:03.4]} 56. Kg2 {[%clk 0:00:04.6]} 56... Rf8 {[%clk 0:00:03.9]} 57. c6
{[%clk 0:00:05]} 57... Qc7 {[%clk 0:00:04.2]} 58. Qd3 {[%clk 0:00:05.1]} 58...
Rd8 {[%clk 0:00:04.3]} 59. Qc3 {[%clk 0:00:05.5]} 59... Rc8 {[%clk 0:00:04.4]}
60. Qc4 {[%clk 0:00:05.9]} 60... Qd6 {[%clk 0:00:04.4]} 61. c7 {[%clk 0:00:06]}
61... Kh7 {[%clk 0:00:04.7]} 62. Qc3 {[%clk 0:00:06.5]} 62... Kh8 {[%clk
0:00:04.9]} 63. e5 {[%clk 0:00:07.1]} 63... Qd7 {[%clk 0:00:05.2]} 64. Qc5
{[%clk 0:00:07.5]} 64... Qd3 {[%clk 0:00:05.3]} 65. Qc3 {[%clk 0:00:07.3]} 65...
Qd7 {[%clk 0:00:05.5]} 66. Kg3 {[%clk 0:00:07.6]} 66... Kh7 {[%clk 0:00:05.7]}
67. Kh2 {[%clk 0:00:08]} 67... Kh8 {[%clk 0:00:06.2]} 68. Qc4 {[%clk 0:00:07.9]}
68... Kh7 {[%clk 0:00:06.4]} 69. Kg3 {[%clk 0:00:07.8]} 69... Kh8 {[%clk
0:00:06.9]} 70. Kg2 {[%clk 0:00:07.4]} 70... Qe7 {[%clk 0:00:07.1]} 71. Qc6
{[%clk 0:00:07.4]} 71... Qf7 {[%clk 0:00:07.2]} 72. Qd6 {[%clk 0:00:07.1]} 72...
Qe8 {[%clk 0:00:07.2]} 73. Rd2 {[%clk 0:00:06.8]} 73... Kh7 {[%clk 0:00:04.7]}
74. Qd8 {[%clk 0:00:06]} 74... Qb5 {[%clk 0:00:03.8]} 75. Qxc8 {[%clk
0:00:05.8]} 75... Qb4 {[%clk 0:00:04.7]} 76. Qg8+ {[%clk 0:00:05.6]} 76... Kxg8
{[%clk 0:00:04.6]} 77. c8=Q+ {[%clk 0:00:06]} 77... Kh7 {[%clk 0:00:05.5]} 78.
Qc2+ {[%clk 0:00:06.6]} 1-0